fUSD/lending_fUSD_20250125
["ID","MTS","AMOUNT","RATE_DAILY","PERIOD"]
[350332230,1737799846334,-500.0,0.00017668,2]
[350332231,1737799846343,-500.0,0.00017668,2]
[350332232,1737799846352,-500.0,0.00017668,2]
[350332233,1737799846363,-500.0,0.00017668,2]
[350332234,1737799846373,-500.0,0.00017668,2]
[350332235,1737799846382,-500.0,0.00017668,2]
[350332236,1737799846391,-592.95,0.00017668,2]
[350332237,1737799846401,-500.0,0.00017668,2]
[350332238,1737799846410,-1159.41,0.0001771,2]
[350332239,1737799846419,-500.0,0.00017804,2]
[350332240,1737799846428,-500.0,0.00017805,2]
[350332241,1737799846437,-500.0,0.00017805,2]
[350332242,1737799846446,-500.0,0.00017805,2]
[350332243,1737799846456,-500.0,0.00017805,2]
[350332244,1737799846465,-500.0,0.00017805,2]
[350332245,1737799846474,-500.0,0.00017805,2]
[350332246,1737799846483,-500.0,0.00017805,2]
[350332247,1737799846494,-200.28685652,0.00017805,2]
[350332248,1737799846503,-500.0,0.00017805,2]
[350332249,1737799846512,-500.0,0.00017805,2]
[350332250,1737799846521,-500.0,0.00017805,2]
[350332251,1737799846531,-500.0,0.00017805,2]
[350332252,1737799846540,-500.0,0.00017805,2]
[350332253,1737799846550,-500.0,0.00017805,2]
[350332254,1737799846560,-500.0,0.00017805,2]
[350332255,1737799846569,-500.0,0.00017805,2]
[350332256,1737799846579,-500.0,0.00017805,2]
[350332257,1737799846588,-500.0,0.00017805,2]
[350332258,1737799846597,-500.0,0.00017805,2]
[350332259,1737799846606,-500.0,0.00017805,2]
[350332260,1737799846615,-500.0,0.00017805,2]
[350332261,1737799846624,-500.0,0.00017805,2]
[350332262,1737799846633,-500.0,0.00017805,2]
[350332263,1737799846642,-500.0,0.00017805,2]
[350332264,1737799846651,-528.32,0.00017805,2]
[350332265,1737799846660,-367.09062,0.00017805,2]
[350332266,1737799846668,-500.0,0.00017805,2]
[350332267,1737799846677,-500.0,0.00017805,2]
[350332268,1737799846686,-500.0,0.00017805,2]
[350332269,1737799846695,-500.0,0.00017805,2]
[350332270,1737799846705,-475.12480419,0.00017805,2]
[350332271,1737799846997,-153.48519581,0.00017805,2]
[350332272,1737799847006,-264.407982,0.00017805,2]
[350332273,1737799847015,-742.48,0.00017805,2]
[350332274,1737799847025,-792.61,0.00017805,2]
[350332275,1737799847034,-500.0,0.00017805,2]
[350332276,1737799847043,-463.50317557,0.00017805,2]
[350332277,1737799847052,-649.19,0.00017805,2]
[350332278,1737799847062,-500.0,0.00017805,2]
[350332279,1737799847071,-500.0,0.00017805,2]
[350332280,1737799847080,-500.0,0.00017805,2]
[350332281,1737799847089,-500.0,0.00017805,2]
[350332282,1737799847099,-626.09,0.00017805,2]
[350332283,1737799847108,-500.0,0.00017805,2]
[350332284,1737799847117,-500.0,0.00017805,2]
[350332285,1737799847126,-579.11,0.00017805,2]
[350332286,1737799847135,-500.0,0.00017805,2]
[350332287,1737799847144,-620.67,0.00017805,2]
[350332288,1737799847154,-500.0,0.00017805,2]
[350332289,1737799847163,-500.0,0.00017805,2]
[350332290,1737799847172,-500.0,0.00017805,2]
[350332291,1737799847181,-500.0,0.00017805,2]
[350332292,1737799847191,-500.0,0.00017805,2]
[350332293,1737799847200,-500.0,0.00017805,2]
[350332294,1737799847209,-500.0,0.00017805,2]
[350332295,1737799847219,-608.45,0.00017805,2]
[350332296,1737799847228,-500.0,0.00017805,2]
[350332297,1737799847237,-500.0,0.00017805,2]
[350332298,1737799847247,-500.0,0.00017805,2]
[350332299,1737799847256,-417.94012138,0.00017805,2]
[350332300,1737799847265,-513.07,0.00017805,2]
[350332301,1737799847275,-500.0,0.00017805,2]
[350332302,1737799847284,-500.0,0.00017805,2]
[350332303,1737799847297,-500.0,0.00017805,2]
[350332304,1737799847306,-500.0,0.00017805,2]
[350332305,1737799847315,-500.0,0.00017805,2]
[350332306,1737799847324,-500.0,0.00017805,2]
[350332307,1737799847335,-500.0,0.00017805,2]
[350332308,1737799847344,-500.0,0.00017805,2]
[350332309,1737799847353,-500.0,0.00017805,2]
[350332310,1737799847363,-500.0,0.00017805,2]
[350332311,1737799847373,-500.0,0.00017805,2]
[350332312,1737799847382,-500.0,0.00017805,2]
[350332313,1737799847391,-500.0,0.00017805,2]
[350332314,1737799847400,-500.0,0.00017805,2]
[350332315,1737799847409,-500.0,0.00017805,2]
[350332316,1737799847418,-500.0,0.00017805,2]
[350332317,1737799847427,-500.0,0.00017805,2]
[350332318,1737799847436,-500.0,0.00017805,2]
[350332319,1737799847445,-500.0,0.00017805,2]
[350332320,1737799847455,-500.0,0.00017805,2]
[350332321,1737799847465,-327.99660475,0.00017805,2]
[350332322,1737799847474,-500.0,0.00017805,2]
[350332323,1737799847484,-500.0,0.00017805,2]
[350332324,1737799847494,-963.69115967,0.00017805,2]
[350332325,1737799847504,-500.0,0.00017805,2]
[350332326,1737799847513,-977.96,0.00017805,2]
[350332327,1737799847522,-174.38680463,0.00017805,2]
[350332328,1737799847532,-500.0,0.00017805,2]
[350332329,1737799847541,-888.99,0.00017805,2]
[350332330,1737799847550,-500.0,0.00017805,2]
[350332331,1737799847560,-521.2,0.00017805,2]
[350332332,1737799847569,-500.0,0.00017805,2]
[350332333,1737799847578,-500.0,0.00017805,2]
[350332334,1737799847587,-627.92,0.00017805,2]
[350332335,1737799847596,-500.0,0.00017805,2]
[350332336,1737799847606,-500.0,0.00017805,2]
[350332337,1737799847615,-801.59,0.00017805,2]
[350332338,1737799847625,-500.0,0.00017805,2]
[350332339,1737799847634,-500.0,0.00017805,2]
[350332340,1737799847644,-500.0,0.00017805,2]
[350332341,1737799847653,-500.0,0.00017805,2]
[350332342,1737799847663,-500.0,0.00017805,2]
[350332343,1737799847672,-500.0,0.00017805,2]
[350332344,1737799847682,-500.0,0.00017805,2]
[350332345,1737799847691,-500.0,0.00017805,2]
[350332346,1737799847700,-542.22,0.00017805,2]
[350332347,1737799847710,-500.0,0.00017805,2]
[350332348,1737799847719,-500.0,0.00017805,2]
[350332349,1737799847729,-500.0,0.00017805,2]
[350332350,1737799847738,-500.0,0.00017805,2]
[350332351,1737799847748,-500.0,0.00017805,2]
[350332352,1737799847757,-500.0,0.00017805,2]
[350332353,1737799847767,-500.0,0.00017805,2]
[350332354,1737799847777,-902.67,0.00017805,2]
[350332355,1737799847787,-500.0,0.00017805,2]
[350332356,1737799847797,-500.0,0.00017805,2]
[350332357,1737799847807,-500.0,0.00017805,2]
[350332358,1737799847816,-500.0,0.00017805,2]
[350332359,1737799847825,-500.0,0.00017805,2]
[350332360,1737799847835,-500.0,0.00017805,2]
[350332361,1737799847844,-592.95,0.00017805,2]
[350332362,1737799847854,-500.0,0.00017805,2]
[350332363,1737799847863,-504.46381724,0.00017834,2]
[350332364,1737799847873,-561.82073165,0.000179,2]
[350332365,1737799847882,-500.0,0.00017941,2]
[350332366,1737799847892,-175.32638408,0.00017941,2]
[350332367,1737799847901,-489.8006886,0.00017941,2]
[350332368,1737799847911,-500.0,0.00017942,2]
[350332369,1737799847921,-500.0,0.00017942,2]
[350332370,1737799847930,-500.0,0.00017942,2]
[350332371,1737799847939,-500.0,0.00017942,2]
[350332372,1737799847948,-500.0,0.00017942,2]
[350332373,1737799847957,-500.0,0.00017942,2]
[350332374,1737799847966,-500.0,0.00017942,2]
[350332375,1737799847975,-500.0,0.00017942,2]
[350332376,1737799847984,-500.0,0.00017942,2]
[350332377,1737799847995,-500.0,0.00017942,2]
[350332378,1737799848005,-500.0,0.00017942,2]
[350332379,1737799848014,-500.0,0.00017942,2]
[350332380,1737799848023,-500.0,0.00017942,2]
[350332381,1737799848032,-500.0,0.00017942,2]
[350332382,1737799848042,-500.0,0.00017942,2]
[350332383,1737799848052,-500.0,0.00017942,2]
[350332384,1737799848061,-500.0,0.00017942,2]
[350332385,1737799848071,-500.0,0.00017942,2]
[350332386,1737799848080,-500.0,0.00017942,2]
[350332387,1737799848090,-500.0,0.00017942,2]
[350332388,1737799848099,-500.0,0.00017942,2]
[350332389,1737799848108,-500.0,0.00017942,2]
[350332390,1737799848117,-500.0,0.00017942,2]
[350332391,1737799848127,-367.09062,0.00017942,2]
[350332392,1737799848136,-271.32,0.00017942,2]
[350332393,1737799848146,-556.68,0.00017942,2]
[350332394,1737799848155,-193.47,0.00017942,2]
[350332395,1737799848165,-308.22,0.00017942,2]
[350332396,1737799848174,-264.407982,0.00017942,2]
[350332397,1737799848183,-742.48,0.00017942,2]
[350332398,1737799848192,-792.61,0.00017942,2]
[350332399,1737799848201,-544.56,0.00017942,2]
[350332400,1737799848210,-500.0,0.00017942,2]
[350332401,1737799848219,-500.0,0.00017942,2]
[350332402,1737799848228,-500.0,0.00017942,2]
[350332403,1737799848238,-626.09,0.00017942,2]
[350332404,1737799848248,-500.0,0.00017942,2]
[350332405,1737799848257,-500.0,0.00017942,2]
[350332406,1737799848268,-500.0,0.00017942,2]
[350332407,1737799848277,-620.67,0.00017942,2]
[350332408,1737799848288,-500.0,0.00017942,2]
[350332409,1737799848300,-500.0,0.00017942,2]
[350332410,1737799848309,-500.0,0.00017942,2]
[350332411,1737799848319,-500.0,0.00017942,2]
[350332412,1737799848328,-500.0,0.00017942,2]
[350332413,1737799848338,-500.0,0.00017942,2]
[350332414,1737799848347,-608.45,0.00017942,2]
[350332415,1737799848356,-500.0,0.00017942,2]
[350332416,1737799848366,-500.0,0.00017942,2]
[350332417,1737799848376,-500.0,0.00017942,2]
[350332418,1737799848385,-513.07,0.00017942,2]
[350332419,1737799848394,-500.0,0.00017942,2]
[350332420,1737799848404,-500.0,0.00017942,2]
[350332421,1737799848413,-500.0,0.00017942,2]
[350332422,1737799848422,-500.0,0.00017942,2]
[350332423,1737799848431,-500.0,0.00017942,2]
[350332424,1737799848440,-500.0,0.00017942,2]
[350332425,1737799848449,-500.0,0.00017942,2]
[350332426,1737799848459,-500.0,0.00017942,2]
[350332427,1737799848468,-500.0,0.00017942,2]
[350332428,1737799848478,-500.0,0.00017942,2]
[350332429,1737799848487,-500.0,0.00017942,2]
[350332430,1737799848496,-500.0,0.00017942,2]
[350332431,1737799848505,-500.0,0.00017942,2]
[350332432,1737799848515,-434.12,0.00017942,2]
[350332433,1737799848524,-500.0,0.00017942,2]
[350332434,1737799848533,-500.0,0.00017942,2]
[350332435,1737799848543,-640.51942296,0.00017942,2]
[350332436,1737799848553,-500.0,0.00017942,2]
[350332437,1737799848562,-500.0,0.00017942,2]
[350332438,1737799848572,-645.24,0.00017942,2]
[350332439,1737799848581,-500.0,0.00017942,2]
[350332440,1737799848590,-500.0,0.00017942,2]
[350332441,1737799848600,-500.0,0.00017942,2]
[350332442,1737799848609,-977.96,0.00017942,2]
[350332443,1737799848619,-305.49423376,0.00017942,2]
[350332444,1737799848628,-888.99,0.00017942,2]
[350332445,1737799848637,-500.0,0.00017942,2]
[350332446,1737799848647,-521.2,0.00017942,2]
[350332447,1737799848656,-500.0,0.00017942,2]
[350332448,1737799848666,-500.0,0.00017942,2]
[350332449,1737799848675,-627.92,0.00017942,2]
[350332450,1737799848684,-500.0,0.00017942,2]
[350332451,1737799848694,-500.0,0.00017942,2]
[350332452,1737799848703,-801.59,0.00017942,2]
[350332453,1737799848712,-500.0,0.00017942,2]
[350332454,1737799848721,-500.0,0.00017942,2]
[350332455,1737799848731,-500.0,0.00017942,2]
[350332456,1737799848741,-170.91,0.00017942,2]
[350332457,1737799848750,-500.0,0.00017942,2]
[350332458,1737799848760,-500.0,0.00017942,2]
[350332459,1737799848769,-500.0,0.00017942,2]
[350332460,1737799848778,-500.0,0.00017942,2]
[350332461,1737799848788,-542.22,0.00017942,2]
[350332462,1737799848797,-500.0,0.00017942,2]
[350332463,1737799848806,-500.0,0.00017942,2]
[350332464,1737799848816,-500.0,0.00017942,2]
[350332465,1737799848826,-500.0,0.00017942,2]
[350332466,1737799848835,-500.0,0.00017942,2]
[350332467,1737799848845,-500.0,0.00017942,2]
[350332468,1737799848854,-500.0,0.00017942,2]
[350332469,1737799848864,-902.67,0.00017942,2]
[350332470,1737799848873,-511.41,0.00017942,2]
[350332471,1737799848882,-500.0,0.00017942,2]
[350332472,1737799848892,-500.0,0.00017942,2]
[350332473,1737799848902,-500.0,0.00017942,2]
[350332474,1737799848911,-500.0,0.00017942,2]
[350332475,1737799848920,-500.0,0.00017942,2]
[350332476,1737799848930,-592.95,0.00017942,2]
[350332477,1737799848939,-500.0,0.00017942,2]
[350332478,1737799848949,-3272.742,0.00017994,2]
[350332479,1737799848958,-180.526,0.00017994,2]
[350332480,1737799848968,-1000.0,0.00017994,2]
[350332481,1737799848977,-2000.0,0.00018,5]
[350332482,1737799848987,-561.82073139,0.00018038,2]
[350332483,1737799848996,-500.0,0.00018078,2]
[350332484,1737799849006,-566.58754395,0.00018079,2]
[350332485,1737799849015,-644.23316015,0.00018079,2]
[350332486,1737799849024,-500.0,0.00018079,2]
[350332487,1737799849034,-591.32,0.00018079,2]
[350332488,1737799849043,-500.0,0.00018079,2]
[350332489,1737799849052,-288.04,0.00018079,2]
[350332490,1737799849062,-500.0,0.00018079,2]
[350332491,1737799849072,-500.0,0.00018079,2]
[350332492,1737799849081,-234.72,0.00018079,2]
[350332493,1737799849090,-177.8,0.00018079,2]
[350332494,1737799849099,-500.0,0.00018079,2]
[350332495,1737799849109,-500.0,0.00018079,2]
[350332496,1737799849119,-500.0,0.00018079,2]
[350332497,1737799849128,-188.5213331,0.00018079,2]
[350332498,1737799849138,-500.0,0.00018079,2]
[350332499,1737799849147,-206.29420956,0.00018079,2]
[350332500,1737799849156,-500.0,0.00018079,2]
[350332501,1737799849166,-500.0,0.00018079,2]
[350332502,1737799849175,-500.0,0.00018079,2]
[350332503,1737799849184,-190.06,0.00018079,2]
[350332504,1737799849194,-551.81163302,0.00018079,2]
[350332505,1737799849203,-500.0,0.00018079,2]
[350332506,1737799849212,-367.09062,0.00018079,2]
[350332507,1737799849222,-264.407982,0.00018079,2]
[350332508,1737799849231,-742.48,0.00018079,2]
[350332509,1737799849240,-792.61,0.00018079,2]
[350332510,1737799849249,-500.0,0.00018079,2]
[350332511,1737799849259,-500.0,0.00018079,2]
[350332512,1737799849270,-500.0,0.00018079,2]
[350332513,1737799849279,-626.09,0.00018079,2]
[350332514,1737799849290,-346.56738202,0.00018079,2]
[350332515,1737799849300,-500.0,0.00018079,2]
[350332516,1737799849310,-500.0,0.00018079,2]
[350332517,1737799849320,-620.67,0.00018079,2]
[350332518,1737799849329,-500.0,0.00018079,2]
[350332519,1737799849339,-500.0,0.00018079,2]
[350332520,1737799849349,-500.0,0.00018079,2]
[350332521,1737799849358,-500.0,0.00018079,2]
[350332522,1737799849368,-500.0,0.00018079,2]
[350332523,1737799849377,-500.0,0.00018079,2]
[350332524,1737799849387,-608.45,0.00018079,2]
[350332525,1737799849397,-500.0,0.00018079,2]
[350332526,1737799849406,-500.0,0.00018079,2]
[350332527,1737799849416,-500.0,0.00018079,2]
[350332528,1737799849425,-513.07,0.00018079,2]
[350332529,1737799849435,-500.0,0.00018079,2]
[350332530,1737799849444,-500.0,0.00018079,2]
[350332531,1737799849454,-500.0,0.00018079,2]
[350332532,1737799849468,-415.74,0.00018079,2]
[350332533,1737799849478,-480.38425812,0.00018079,2]
[350332534,1737799849487,-500.0,0.00018079,2]
[350332535,1737799849497,-500.0,0.00018079,2]
[350332536,1737799849507,-500.0,0.00018079,2]
[350332537,1737799849517,-500.0,0.00018079,2]
[350332538,1737799849527,-500.0,0.00018079,2]
[350332539,1737799849536,-500.0,0.00018079,2]
[350332540,1737799849547,-500.0,0.00018079,2]
[350332541,1737799849557,-500.0,0.00018079,2]
[350332542,1737799849567,-500.0,0.00018079,2]
[350332543,1737799849577,-500.0,0.00018079,2]
[350332544,1737799849587,-500.0,0.00018079,2]
[350332545,1737799849596,-321.33,0.00018079,2]
[350332546,1737799849606,-500.0,0.00018079,2]
[350332547,1737799849615,-500.0,0.00018079,2]
[350332548,1737799849625,-500.0,0.00018079,2]
[350332549,1737799849634,-977.96,0.00018079,2]
[350332550,1737799849644,-888.99,0.00018079,2]
[350332551,1737799849653,-500.0,0.00018079,2]
[350332552,1737799849662,-521.2,0.00018079,2]
[350332553,1737799849671,-500.0,0.00018079,2]
[350332554,1737799849682,-500.0,0.00018079,2]
[350332555,1737799849691,-627.92,0.00018079,2]
[350332556,1737799849700,-500.0,0.00018079,2]
[350332557,1737799849710,-438.7,0.00018079,2]
[350332558,1737799849719,-801.59,0.00018079,2]
[350332559,1737799849729,-500.0,0.00018079,2]
[350332560,1737799849738,-228.61328859,0.00018079,2]
[350332561,1737799849748,-500.0,0.00018079,2]
[350332562,1737799849758,-500.0,0.00018079,2]
[350332563,1737799849767,-500.0,0.00018079,2]
[350332564,1737799849777,-500.0,0.00018079,2]
[350332565,1737799849787,-500.0,0.00018079,2]
[350332566,1737799849796,-542.22,0.00018079,2]
[350332567,1737799849805,-500.0,0.00018079,2]
[350332568,1737799849814,-500.0,0.00018079,2]
[350332569,1737799849823,-500.0,0.00018079,2]
[350332570,1737799849832,-362.31,0.00018079,2]
[350332571,1737799849842,-500.0,0.00018079,2]
[350332572,1737799849851,-500.0,0.00018079,2]
[350332573,1737799849860,-500.0,0.00018079,2]
[350332574,1737799849869,-902.67,0.00018079,2]
[350332575,1737799849879,-500.0,0.00018079,2]
[350332576,1737799849888,-500.0,0.00018079,2]
[350332577,1737799849896,-500.0,0.00018079,2]
[350332578,1737799849906,-500.0,0.00018079,2]
[350332579,1737799849915,-93.64618701,0.00018079,2]
[350332580,1737799849952,-700.93254089,0.00018,2]
[350332591,1737800167006,-157.11,0.00017358,30]
[350332592,1737800167129,-6783.0,0.0002191,30]
[350332593,1737800167164,-2000.0,0.00021917,30]
[350332594,1737800167199,-2000.0,0.00021917,30]
[350332595,1737800167232,-2000.0,0.00021917,30]
[350332596,1737800167267,-2000.0,0.00021917,30]
[350332597,1737800167303,-2000.0,0.00021917,30]
[350332598,1737800167336,-2000.0,0.00021917,30]
[350332599,1737800167370,-2000.0,0.00021917,30]
[350332600,1737800167405,-1843.45791157,0.00021917,30]
[350332601,1737800167444,-6262.89,0.00022,30]
[350332627,1737800566241,164.94,0.00010137,2]
[350332635,1737800734094,-169.41,0.00012329,2]
[350332636,1737800734116,-172.23,0.00013498,2]
[350332637,1737800734139,-347.4505841,0.00014824,2]
[350332643,1737800880762,130406.5882387,0.0001,2]
[350332644,1737800880791,12925.54845489,0.0001,2]
[350332659,1737800957074,-477.688095,9.948e-05,2]
[350332660,1737800957096,-300.0,9.999e-05,2]
[350332661,1737800957119,-1672.75917598,0.0001,2]
[350332663,1737801005547,279.0,0.00022,30]
[350332670,1737801031811,-300.0,9.999e-05,2]
[350332671,1737801031820,-1739.82839759,0.0001,2]
[350332672,1737801031830,-382.39838846,0.0001,2]
[350332673,1737801031865,-2170.46711662,0.0001,2]
[350332674,1737801031975,-1446.33781593,0.0001,2]
[350332675,1737801032028,-6887.09056867,0.0001,2]
[350332676,1737801032084,-4153.82927351,0.0001,2]
[350332677,1737801032139,-322.36710265,0.0001,2]
[350332755,1737801037698,-925.45190958,0.0001,2]
[350332756,1737801037806,-95234.18491838,0.0001,2]
[350332757,1737801037861,-26810.36358423,0.0001,2]
[350332758,1737801037871,-420.0,0.00010999,2]
[350332759,1737801037880,-587.0,0.00012099,2]
[350332760,1737801037890,-613.0,0.00013309,2]
[350332761,1737801037899,-929.3794159,0.00014824,2]
[350332762,1737801037908,-550.0,0.00015,2]
[350332763,1737801037918,-235.19985434,0.000154,2]
[350332764,1737801037928,-250.0,0.00016525,2]
[350332765,1737801037938,-4261.67696867,0.00016525,2]
[350332766,1737801037947,-5094.72445552,0.0001669,2]
[350332767,1737801037960,-250.0,0.00016759,2]
[350332768,1737801037970,-23900.0,0.00016776,2]
[350332769,1737801037980,-374.2,0.0001679,2]
[350332770,1737801037989,-612.8,0.00016792,2]
[350332771,1737801037998,-738.9582,0.00016807,2]
[350332772,1737801038007,-250.0,0.00016907,2]
[350332773,1737801038017,-1000.0,0.00016999,2]
[350332775,1737801038026,-600.0,0.00017,2]
[350332777,1737801038036,-193.51,0.00017038,2]
[350332779,1737801038045,-5094.72445549,0.00017061,2]
[350332780,1737801038055,-1276.83,0.00017088,2]
[350332781,1737801038065,-500.0,0.00017394,2]
[350332782,1737801038080,-500.0,0.00017394,2]
[350332783,1737801038089,-413.051,0.00017412,2]
[350332784,1737801038099,-771.1,0.00017419,2]
[350332785,1737801038109,-552.06321117,0.00017431,2]
[350332786,1737801038117,-5094.72445549,0.00017433,2]
[350332787,1737801038127,-1000.0,0.0001753,2]
[350332788,1737801038136,-351.0831036,0.00017531,2]
[350332790,1737801038145,-500.0,0.00017531,2]
[350332792,1737801038154,-425.8332234,0.00017531,2]
[350332794,1737801038163,-500.0,0.00017531,2]
[350332796,1737801038172,-500.0,0.00017531,2]
[350332798,1737801038181,-500.0,0.00017531,2]
[350332800,1737801038190,-500.0,0.00017531,2]
[350332802,1737801038199,-500.0,0.00017531,2]
[350332804,1737801038209,-414.38000757,0.00017531,2]
[350332806,1737801038218,-500.0,0.00017531,2]
[350332809,1737801038227,-500.0,0.00017531,2]
[350332811,1737801038237,-503.40360493,0.00017531,2]
[350332812,1737801038246,-501.20542162,0.00017531,2]
[350332813,1737801038254,-500.0,0.00017531,2]
[350332814,1737801038264,-500.0,0.00017531,2]
[350332815,1737801038273,-500.0,0.00017531,2]
[350332816,1737801038282,-510.56865333,0.00017531,2]
[350332817,1737801038291,-500.0,0.00017531,2]
[350332818,1737801038306,-169.18,0.00017636,2]
[350332819,1737801038318,-500.0,0.00017667,2]
[350332820,1737801038327,-500.0,0.00017667,2]
[350332821,1737801038336,-500.0,0.00017667,2]
[350332822,1737801038346,-500.0,0.00017667,2]
[350332823,1737801038355,-500.0,0.00017667,2]
[350332824,1737801038364,-397.33683613,0.00017667,2]
[350332825,1737801038373,-514.87249543,0.00017667,2]
[350332826,1737801038382,-500.0,0.00017667,2]
[350332828,1737801038392,-500.0,0.00017667,2]
[350332830,1737801038401,-500.0,0.00017667,2]
[350332832,1737801038410,-500.0,0.00017667,2]
[350332834,1737801038420,-500.0,0.00017667,2]
[350332848,1737801038615,-466.20855318,0.00017667,2]
[350332849,1737801038633,-33.79144682,0.00017667,2]
[350332850,1737801038643,-500.0,0.00017667,2]
[350332851,1737801038653,-500.0,0.00017667,2]
[350332852,1737801038665,-500.0,0.00017667,2]
[350332853,1737801038675,-500.0,0.00017667,2]
[350332854,1737801038684,-500.0,0.00017667,2]
[350332855,1737801038693,-500.0,0.00017667,2]
[350332856,1737801038703,-500.0,0.00017667,2]
[350332857,1737801038713,-500.0,0.00017667,2]
[350332858,1737801038723,-500.0,0.00017667,2]
[350332859,1737801038732,-500.0,0.00017667,2]
[350332860,1737801038744,-500.0,0.00017667,2]
[350332861,1737801038754,-500.0,0.00017667,2]
[350332862,1737801038767,-500.0,0.00017667,2]
[350332863,1737801038777,-500.0,0.00017667,2]
[350332864,1737801038786,-500.0,0.00017667,2]
[350332865,1737801038795,-500.0,0.00017667,2]
[350332866,1737801038804,-500.0,0.00017667,2]
[350332867,1737801038814,-500.0,0.00017667,2]
[350332868,1737801038823,-500.0,0.00017667,2]
[350332869,1737801038832,-500.0,0.00017667,2]
[350332870,1737801038841,-500.0,0.00017667,2]
[350332871,1737801038851,-220.11890478,0.00017667,2]
[350332872,1737801038862,-279.88109522,0.00017667,2]
[350332873,1737801038871,-500.0,0.00017667,2]
[350332874,1737801038880,-214.76488444,0.00017667,2]
[350332875,1737801038891,-285.23511556,0.00017667,2]
[350332876,1737801038900,-500.0,0.00017667,2]
[350332877,1737801038909,-500.0,0.00017667,2]
[350332878,1737801038918,-500.0,0.00017667,2]
[350332879,1737801038927,-500.0,0.00017667,2]
[350332880,1737801038944,-500.0,0.00017667,2]
[350332881,1737801038957,-500.0,0.00017667,2]
[350332882,1737801038967,-500.0,0.00017667,2]
[350332883,1737801038977,-234.36116998,0.00017668,2]
[350332884,1737801038987,-1825.0,0.000177,2]
[350332885,1737801038997,-208.5436,0.00017704,2]
[350332886,1737801039008,-2485.8515,0.00017704,2]
[350332887,1737801039019,-229.35,0.00017793,2]
[350332888,1737801039030,-181.66607526,0.000178,2]
[350332889,1737801039039,-500.0,0.00017803,2]
[350332890,1737801039049,-500.0,0.00017803,2]
[350332891,1737801039060,-500.0,0.00017803,2]
[350332892,1737801039070,-500.0,0.00017803,2]
[350332893,1737801039080,-500.0,0.00017803,2]
[350332894,1737801039090,-586.0,0.00017803,2]
[350332895,1737801039099,-500.0,0.00017803,2]
[350332896,1737801039108,-692.45,0.00017803,2]
[350332897,1737801039117,-500.0,0.00017803,2]
[350332898,1737801039127,-500.0,0.00017803,2]
[350332899,1737801039137,-851.73,0.00017803,2]
[350332900,1737801039148,-500.0,0.00017803,2]
[350332901,1737801039157,-500.0,0.00017803,2]
[350332902,1737801039167,-500.0,0.00017803,2]
[350332903,1737801039176,-500.0,0.00017803,2]
[350332904,1737801039186,-500.0,0.00017803,2]
[350332905,1737801039198,-500.0,0.00017803,2]
[350332906,1737801039207,-472.53882626,0.00017803,2]